fUST/lending_fUST_20240910
["ID","MTS","AMOUNT","RATE_DAILY","PERIOD"]
[337710455,1725982246840,-500.0,0.00017705,2]
[337710456,1725982246851,-582.68,0.00017705,2]
[337710457,1725982246863,-500.0,0.00017705,2]
[337710458,1725982246877,-2999.95,0.00017705,2]
[337710459,1725982246891,-663.07,0.00017705,2]
[337710460,1725982246903,-673.84,0.00017705,2]
[337710461,1725982246920,-500.0,0.00017705,2]
[337710462,1725982246935,-500.0,0.00017705,2]
[337710463,1725982246946,-568.9,0.00017705,2]
[337710464,1725982246957,-563.51,0.00017705,2]
[337710465,1725982246968,-521.51,0.00017705,2]
[337710466,1725982246981,-500.0,0.00017705,2]
[337710467,1725982246993,-737.11,0.00017705,2]
[337710468,1725982247005,-516.18746789,0.00017705,2]
[337710469,1725982247018,-500.0,0.00017705,2]
[337710470,1725982247033,-628.43,0.00017705,2]
[337710471,1725982247045,-500.0,0.00017705,2]
[337710472,1725982247058,-500.0,0.00017705,2]
[337710473,1725982247071,-717.63,0.00017705,2]
[337710474,1725982247085,-500.0,0.00017705,2]
[337710475,1725982247097,-785.79,0.00017706,2]
[337710476,1725982247110,-649.6386802,0.00017706,2]
[337710477,1725982247124,-500.0,0.00017706,2]
[337710478,1725982247136,-631.04,0.00017706,2]
[337710479,1725982247149,-500.0,0.00017706,2]
[337710480,1725982247162,-500.0,0.00017706,2]
[337710481,1725982247174,-500.0,0.00017706,2]
[337710482,1725982247188,-801.31,0.00017706,2]
[337710483,1725982247201,-500.0,0.00017706,2]
[337710484,1725982247216,-726.11,0.00017706,2]
[337710485,1725982247231,-500.0,0.00017706,2]
[337710486,1725982247246,-898.91,0.00017706,2]
[337710487,1725982247260,-500.0,0.00017706,2]
[337710488,1725982247273,-761.46,0.00017706,2]
[337710489,1725982247288,-810.82,0.00017706,2]
[337710490,1725982247300,-500.0,0.00017706,2]
[337710491,1725982247312,-645.12,0.00017706,2]
[337710492,1725982247325,-583.0,0.00017706,2]
[337710493,1725982247338,-1522.6,0.00017706,2]
[337710494,1725982247351,-1638.14,0.00017706,2]
[337710495,1725982247365,-500.0,0.00017706,2]
[337710496,1725982247378,-1028.24,0.00017706,2]
[337710497,1725982247392,-1023.1,0.00017706,2]
[337710498,1725982247407,-500.0,0.00017706,2]
[337710499,1725982247418,-716.27,0.00017706,2]
[337710500,1725982247431,-719.83,0.00017706,2]
[337710501,1725982247444,-1095.72,0.00017706,2]
[337710502,1725982247458,-1551.35,0.00017706,2]
[337710503,1725982247471,-1683.32,0.00017706,2]
[337710504,1725982247486,-1231.08,0.00017706,2]
[337710505,1725982247499,-500.0,0.00017706,2]
[337710506,1725982247511,-1788.26,0.00017706,2]
[337710507,1725982247525,-582.21,0.00017706,2]
[337710508,1725982247539,-500.0,0.00017706,2]
[337710509,1725982247553,-500.0,0.00017706,2]
[337710510,1725982247566,-500.0,0.00017706,2]
[337710511,1725982247578,-589.66,0.00017706,2]
[337710512,1725982247592,-671.19,0.00017706,2]
[337710513,1725982247604,-1101.26,0.00017706,2]
[337710514,1725982247617,-500.0,0.00017706,2]
[337710515,1725982247630,-900.41,0.00017706,2]
[337710516,1725982247645,-500.0,0.00017706,2]
[337710517,1725982247658,-2262.35,0.00017706,2]
[337710518,1725982247670,-906.65,0.00017706,2]
[337710519,1725982247683,-1631.15,0.00017706,2]
[337710520,1725982247695,-4184.79,0.00017706,2]
[337710521,1725982247707,-500.0,0.00017706,2]
[337710522,1725982247721,-500.0,0.00017706,2]
[337710523,1725982247734,-500.0,0.00017706,2]
[337710524,1725982247747,-627.31,0.00017706,2]
[337710525,1725982247761,-151.0,0.00017706,2]
[337710526,1725982247773,-586.98,0.00017706,2]
[337710527,1725982247787,-151.0,0.00017706,2]
[337710528,1725982247799,-500.0,0.00017706,2]
[337710529,1725982247812,-500.0,0.00017706,2]
[337710530,1725982247827,-1139.29,0.00017706,2]
[337710531,1725982247841,-550.92,0.00017706,2]
[337710532,1725982247854,-594.27,0.00017706,2]
[337710533,1725982247865,-619.2,0.00017706,2]
[337710534,1725982247878,-151.0,0.00017706,2]
[337710535,1725982247890,-646.877255,0.00017706,2]
[337710536,1725982247902,-449.849696,0.00017706,2]
[337710537,1725982247915,-500.0,0.00017706,2]
[337710538,1725982247929,-682.42,0.00017706,2]
[337710539,1725982247942,-449.849696,0.00017706,2]
[337710540,1725982247954,-646.877255,0.00017706,2]
[337710541,1725982247964,-1796.48,0.00017706,2]
[337710542,1725982247976,-500.0,0.00017706,2]
[337710543,1725982247987,-151.0,0.00017706,2]
[337710544,1725982247997,-500.0,0.00017706,2]
[337710545,1725982248008,-500.0,0.00017706,2]
[337710546,1725982248018,-198.070162,0.00017706,2]
[337710547,1725982248028,-151.0,0.00017706,2]
[337710548,1725982248038,-1601.57,0.00017706,2]
[337710549,1725982248047,-198.070162,0.00017706,2]
[337710550,1725982248058,-151.0,0.00017706,2]
[337710551,1725982248069,-151.0,0.00017706,2]
[337710552,1725982248079,-691.82,0.00017706,2]
[337710553,1725982248089,-151.0,0.00017706,2]
[337710554,1725982248099,-151.0,0.00017706,2]
[337710555,1725982248112,-500.0,0.00017706,2]
[337710556,1725982248122,-163.544642,0.00017706,2]
[337710557,1725982248132,-500.0,0.00017706,2]
[337710558,1725982248142,-151.0,0.00017706,2]
[337710559,1725982248153,-151.0,0.00017706,2]
[337710560,1725982248429,-154.206267,0.00017706,2]
[337710561,1725982248453,-160.117975,0.00017706,2]
[337710562,1725982248470,-277.041058,0.00017706,2]
[337710563,1725982248480,-160.117975,0.00017706,2]
[337710564,1725982248490,-151.0,0.00017706,2]
[337710565,1725982248499,-151.0,0.00017706,2]
[337710566,1725982248509,-151.0,0.00017706,2]
[337710567,1725982248519,-155.754661,0.00017706,2]
[337710568,1725982248528,-155.754661,0.00017706,2]
[337710569,1725982248539,-151.0,0.00017706,2]
[337710570,1725982248548,-500.0,0.00017707,2]
[337710571,1725982248559,-500.0,0.00017707,2]
[337710572,1725982248568,-248.87170104,0.00017707,2]
[337710633,1725982932513,44907.13254208,0.00028,120]
[337710640,1725983242742,24900.0,0.00015928,2]
[337710651,1725983407875,-168.359739,0.00016087,2]
[337710652,1725983407900,-168.359739,0.00016297,2]
[337710653,1725983407926,-168.359739,0.00016506,2]
[337710654,1725983407950,-168.359739,0.00016716,2]
[337710655,1725983407978,-500.6367678,0.000168,2]
[337710656,1725983408003,-3997.40053685,0.00016897,2]
[337710657,1725983408027,-300.0,0.00016897,2]
[337710658,1725983408050,-8869.46925066,0.00016898,2]
[337710659,1725983408073,-1000.0,0.000169,2]
[337710660,1725983408096,-153.0,0.000169,2]
[337710661,1725983408120,-168.359739,0.00016925,2]
[337710662,1725983408143,-500.0,0.00016973,2]
[337710663,1725983408166,-500.0,0.00016973,2]
[337710664,1725983408189,-500.0,0.00016973,2]
[337710665,1725983408229,-158.57420057,0.00016973,2]
[337710666,1725983408252,-160.05405387,0.00016973,2]
[337710667,1725983408278,-159.30780328,0.00016973,2]
[337710668,1725983408301,-500.0,0.00016973,2]
[337710669,1725983408324,-269.01286682,0.00016973,2]
[337710670,1725983408348,-403.59816247,0.00016973,2]
[337710671,1725983408372,-500.0,0.00016973,2]
[337710672,1725983408397,-500.0,0.00016973,2]
[337710673,1725983408420,-500.0,0.00016973,2]
[337710674,1725983408444,-500.2120478,0.00016973,2]
[337710675,1725983408472,-434.86258447,0.00016973,2]
[337710676,1725983408495,-500.0,0.00016973,2]
[337710677,1725983408519,-500.0,0.00016973,2]
[337710678,1725983408544,-1700.87,0.00016996,2]
[337710679,1725983408569,-4037.07,0.00016996,2]
[337710680,1725983408595,-797.99,0.00016996,2]
[337710681,1725983408619,-927.79,0.00016996,2]
[337710682,1725983408644,-906.49,0.00016996,2]
[337710683,1725983408669,-820.39,0.00016996,2]
[337710684,1725983408694,-500.0,0.00016996,2]
[337710685,1725983408727,-5818.07,0.00016996,2]
[337710686,1725983408751,-500.0,0.00016997,2]
[337710687,1725983408779,-594.18006222,0.00016997,2]
[337710688,1725983408805,-500.0,0.00016997,2]
[337710689,1725983408829,-500.0,0.00016997,2]
[337710690,1725983408857,-500.0,0.00016997,2]
[337710691,1725983408882,-500.0,0.00016997,2]
[337710692,1725983408907,-500.0,0.00016997,2]
[337710693,1725983408934,-500.0,0.00016997,2]
[337710694,1725983408960,-500.0,0.00016997,2]
[337710695,1725983408991,-500.0,0.00016997,2]
[337710696,1725983409014,-500.0,0.00016997,2]
[337710697,1725983409037,-512.08428796,0.00016997,2]
[337710698,1725983409061,-500.0,0.00016997,2]
[337710699,1725983409085,-500.0,0.00016997,2]
[337710700,1725983409108,-914.34,0.00016997,2]
[337710701,1725983409132,-500.0,0.00016997,2]
[337710702,1725983409156,-177.49335652,0.00016997,2]
[337710703,1725983409180,-500.0,0.00016997,2]
[337710704,1725983409202,-500.0,0.00016997,2]
[337710705,1725983409229,-500.0,0.00016997,2]
[337710706,1725983409252,-500.0,0.00016997,2]
[337710707,1725983409274,-500.0,0.00016997,2]
[337710708,1725983409297,-1217.61,0.00016997,2]
[337710709,1725983409319,-500.0,0.00016997,2]
[337710710,1725983409342,-220.87,0.00016997,2]
[337710711,1725983409364,-500.0,0.00016997,2]
[337710712,1725983409387,-500.0,0.00016997,2]
[337710713,1725983409409,-500.0,0.00016997,2]
[337710714,1725983409431,-500.0,0.00016997,2]
[337710715,1725983409454,-500.0,0.00016997,2]
[337710716,1725983409481,-500.0,0.00016997,2]
[337710717,1725983409506,-500.0,0.00016997,2]
[337710718,1725983409528,-500.0,0.00016997,2]
[337710719,1725983409550,-500.0,0.00016997,2]
[337710720,1725983409574,-500.0,0.00016997,2]
[337710721,1725983409596,-500.0,0.00016997,2]
[337710722,1725983409619,-500.0,0.00016997,2]
[337710723,1725983409641,-191.57543814,0.00016997,2]
[337710724,1725983409663,-520.88,0.00016997,2]
[337710725,1725983409686,-504.32,0.00016997,2]
[337710726,1725983409708,-500.0,0.00016997,2]
[337710727,1725983409740,-577.07,0.00016997,2]
[337710728,1725983409764,-500.0,0.00016997,2]
[337710729,1725983409787,-500.0,0.00016997,2]
[337710730,1725983409811,-500.0,0.00016997,2]
[337710731,1725983409836,-500.0,0.00016997,2]
[337710732,1725983409861,-421.5997197,0.00016997,2]
[337710733,1725983409884,-500.0,0.00016997,2]
[337710734,1725983409907,-500.0,0.00016997,2]
[337710735,1725983409930,-500.0,0.00016997,2]
[337710736,1725983409954,-500.0,0.00016997,2]
[337710737,1725983409980,-500.0,0.00016997,2]
[337710738,1725983410001,-500.0,0.00016997,2]
[337710739,1725983410024,-500.0,0.00016997,2]
[337710740,1725983410047,-568.03,0.00016997,2]
[337710741,1725983410069,-505.87537366,0.00016997,2]
[337710742,1725983410092,-500.0,0.00016997,2]
[337710743,1725983410114,-500.0,0.00016997,2]
[337710744,1725983410137,-500.0,0.00016997,2]
[337710745,1725983410159,-500.0,0.00016997,2]
[337710746,1725983410182,-3293.59,0.00016998,2]
[337710747,1725983410204,-743.81,0.00016998,2]
[337710748,1725983410231,-3039.38,0.00016998,2]
[337710749,1725983410254,-1019.66,0.00016998,2]
[337710750,1725983410278,-1116.95,0.00016998,2]
[337710751,1725983410299,-500.0,0.00016998,2]
[337710752,1725983410498,-500.0,0.00016998,2]
[337710753,1725983410523,-500.0,0.00016998,2]
[337710754,1725983410548,-604.09,0.00016998,2]
[337710755,1725983410573,-500.0,0.00016998,2]
[337710756,1725983410597,-1340.19,0.00016998,2]
[337710757,1725983410621,-500.0,0.00016998,2]
[337710758,1725983410646,-1188.6,0.00016998,2]
[337710759,1725983410669,-500.0,0.00016998,2]
[337710760,1725983410693,-500.0,0.00016998,2]
[337710761,1725983410716,-1678.18,0.00016998,2]
[337710762,1725983410741,-43710.51,0.00016998,2]
[337710763,1725983410765,-1566.5,0.00016998,2]
[337710764,1725983410789,-1935.05,0.00016998,2]
[337710765,1725983410814,-1689.45,0.00016998,2]
[337710766,1725983410837,-716.99,0.00016998,2]
[337710767,1725983410860,-3850.92,0.00016998,2]
[337710768,1725983410882,-500.0,0.00016998,2]
[337710769,1725983410904,-500.0,0.00016998,2]
[337710770,1725983410927,-500.0,0.00016998,2]
[337710771,1725983410949,-1669.89,0.00016998,2]
[337710772,1725983410973,-2994.79,0.00016998,2]
[337710773,1725983410995,-500.0,0.00016998,2]
[337710774,1725983411017,-500.0,0.00016998,2]
[337710775,1725983411039,-500.0,0.00016998,2]
[337710776,1725983411064,-500.0,0.00016998,2]
[337710777,1725983411089,-500.0,0.00016998,2]
[337710778,1725983411111,-214.1056049,0.00016998,2]
[337710779,1725983411133,-500.0,0.00016998,2]
[337710780,1725983411156,-237.35697149,0.00016998,2]
[337710781,1725983411178,-500.0,0.00016998,2]
[337710782,1725983411200,-500.0,0.00016998,2]
[337710783,1725983411225,-500.0,0.00016998,2]
[337710784,1725983411247,-500.0,0.00016998,2]
[337710785,1725983411271,-350.0,0.00016998,2]
[337710786,1725983411294,-500.0,0.00016998,2]
[337710787,1725983411316,-500.0,0.00016998,2]
[337710788,1725983411341,-500.0,0.00016998,2]
[337710789,1725983411364,-500.0,0.00016998,2]
[337710790,1725983411388,-500.0,0.00016998,2]
[337710791,1725983411412,-500.0,0.00016998,2]
[337710792,1725983411435,-500.0,0.00016998,2]
[337710793,1725983411457,-289.17512083,0.00016998,2]
[337710794,1725983411483,-500.0,0.00016998,2]
[337710795,1725983411506,-500.0,0.00016998,2]
[337710796,1725983411528,-500.0,0.00016998,2]
[337710797,1725983411551,-500.0,0.00016998,2]
[337710798,1725983411576,-500.0,0.00016998,2]
[337710799,1725983411599,-500.0,0.00016998,2]
[337710800,1725983411624,-500.0,0.00016998,2]
[337710801,1725983411648,-500.0,0.00016998,2]
[337710802,1725983411673,-500.0,0.00016998,2]
[337710803,1725983411697,-500.0,0.00016998,2]
[337710804,1725983411724,-500.0,0.00016998,2]
[337710805,1725983411751,-500.0,0.00016998,2]
[337710806,1725983411780,-500.0,0.00016998,2]
[337710807,1725983411807,-500.0,0.00016998,2]
[337710808,1725983411832,-500.0,0.00016998,2]
[337710809,1725983411856,-500.0,0.00016998,2]
[337710810,1725983411879,-500.0,0.00016998,2]
[337710811,1725983411905,-500.0,0.00016998,2]
[337710812,1725983411932,-500.0,0.00016998,2]
[337710813,1725983411957,-500.0,0.00016998,2]
[337710814,1725983411984,-500.0,0.00016998,2]
[337710815,1725983412010,-500.0,0.00016998,2]
[337710816,1725983412034,-500.0,0.00016998,2]
[337710817,1725983412060,-500.0,0.00016998,2]
[337710818,1725983412085,-500.0,0.00016998,2]
[337710819,1725983412110,-500.0,0.00016998,2]
[337710820,1725983412136,-500.0,0.00016998,2]
[337710821,1725983412160,-500.0,0.00016998,2]
[337710822,1725983412183,-500.0,0.00016998,2]
[337710823,1725983412208,-500.0,0.00016998,2]
[337710824,1725983412235,-500.0,0.00016998,2]
[337710825,1725983412258,-500.0,0.00016998,2]
[337710826,1725983412282,-500.0,0.00016998,2]
[337710827,1725983412305,-500.0,0.00016998,2]
[337710828,1725983412328,-500.0,0.00016998,2]
[337710829,1725983412350,-500.0,0.00016998,2]
[337710830,1725983412373,-500.0,0.00016998,2]
[337710831,1725983412397,-500.0,0.00016998,2]
[337710832,1725983412421,-500.0,0.00016998,2]
[337710833,1725983412448,-500.0,0.00016998,2]
[337710834,1725983412471,-500.0,0.00016998,2]
[337710835,1725983412495,-500.0,0.00016998,2]
[337710836,1725983412519,-172.7954317,0.00016998,2]
[337710837,1725983412543,-500.0,0.00016998,2]
[337710838,1725983412567,-500.0,0.00016998,2]
[337710839,1725983412592,-500.0,0.00016998,2]
[337710840,1725983412616,-500.0,0.00016998,2]
[337710841,1725983412641,-500.0,0.00016998,2]
[337710842,1725983412664,-200.0,0.00016998,2]
[337710843,1725983412687,-500.0,0.00016998,2]
[337710844,1725983412710,-500.0,0.00016998,2]
[337710845,1725983412743,-500.0,0.00016998,2]
[337710846,1725983412767,-500.0,0.00016998,2]
[337710847,1725983412790,-500.0,0.00016998,2]
[337710848,1725983412815,-500.0,0.00016998,2]
[337710849,1725983412840,-500.0,0.00016998,2]
[337710850,1725983412863,-500.0,0.00016998,2]
[337710851,1725983412886,-500.0,0.00016998,2]
[337710852,1725983412909,-16260.05730843,0.00016999,3]
[337710853,1725983412932,-689.21,0.00016999,2]
[337710854,1725983412955,-500.0,0.00016999,2]
[337710855,1725983412984,-688.68,0.00016999,2]
[337710856,1725983413006,-500.0,0.00016999,2]
[337710857,1725983413030,-500.0,0.00016999,2]
[337710858,1725983413054,-500.0,0.00016999,2]
[337710859,1725983413078,-500.0,0.00016999,2]
[337710860,1725983413102,-500.0,0.00016999,2]
[337710861,1725983413127,-1078.27,0.00016999,2]
[337710862,1725983413151,-500.0,0.00016999,2]
[337710863,1725983413176,-556.61,0.00016999,2]
[337710864,1725983413199,-500.0,0.00016999,2]
[337710865,1725983413226,-500.0,0.00016999,2]
[337710866,1725983413250,-500.0,0.00016999,2]
[337710867,1725983413274,-500.0,0.00016999,2]
[337710868,1725983413298,-1291.66,0.00016999,2]
[337710869,1725983413321,-1155.41,0.00016999,2]
[337710870,1725983413345,-500.0,0.00016999,2]
[337710871,1725983413369,-500.0,0.00016999,2]
[337710872,1725983413392,-500.0,0.00016999,2]
[337710873,1725983413416,-500.0,0.00016999,2]
[337710874,1725983413439,-500.0,0.00016999,2]
[337710875,1725983413463,-500.0,0.00016999,2]
[337710876,1725983413488,-854.76,0.00016999,2]
[337710877,1725983413511,-188.38496435,0.00016999,2]
[337710878,1725983413534,-2056.12,0.00016999,2]
[337710879,1725983413557,-809.21,0.00016999,2]
[337710880,1725983413766,-507.56,0.00016999,2]
[337710881,1725983413791,-509.33945968,0.00016999,2]
[337710882,1725983413815,-1316.18,0.00016999,2]
[337710883,1725983413839,-500.0,0.00016999,2]
[337710884,1725983413863,-505.4596711,0.00016999,2]
[337710885,1725983413886,-500.0,0.00016999,2]
[337710886,1725983413911,-500.0,0.00016999,2]
[337710887,1725983413935,-3939.45,0.00016999,2]
[337710888,1725983413958,-1844.89,0.00016999,2]
[337710889,1725983413984,-500.0,0.00016999,2]
[337710890,1725983414008,-500.0,0.00016999,2]
[337710891,1725983414032,-500.0,0.00016999,2]
[337710892,1725983414057,-922.73,0.00016999,2]
[337710893,1725983414081,-814.16,0.00016999,2]
[337710894,1725983414103,-534.3982824,0.00016999,2]
[337710895,1725983414126,-678.7,0.00016999,2]
[337710896,1725983414149,-1274.27,0.00016999,2]
[337710897,1725983414171,-500.0,0.00016999,2]
[337710898,1725983414194,-2990.07,0.00016999,2]
[337710899,1725983414218,-500.0,0.00016999,2]
[337710900,1725983414244,-1869.52,0.00016999,2]
[337710901,1725983414267,-510.1,0.00016999,2]
[337710902,1725983414290,-500.0,0.00016999,2]
[337710903,1725983414314,-3821.22,0.00016999,2]
[337710904,1725983414337,-506.48,0.00016999,2]
[337710905,1725983414360,-500.0,0.00016999,2]
[337710906,1725983414383,-500.0,0.00016999,2]
[337710907,1725983414409,-500.0,0.00016999,2]
[337710908,1725983414432,-500.0,0.00016999,2]
[337710909,1725983414457,-500.0,0.00016999,2]
[337710910,1725983414481,-501.10648489,0.00016999,2]
[337710911,1725983414504,-479.28602981,0.00016999,2]
[337710912,1725983414526,-768.49,0.00016999,2]
[337710913,1725983414549,-913.21,0.00016999,2]
[337710914,1725983414572,-1667.69,0.00016999,2]
[337710915,1725983414596,-733.63,0.00016999,2]
[337710916,1725983414620,-1750.24,0.00016999,2]
[337710917,1725983414644,-1419.3,0.00016999,2]
[337710918,1725983414668,-507.91584002,0.00016999,2]
[337710919,1725983414692,-549.41,0.00016999,2]
[337710920,1725983414715,-502.89839251,0.00016999,2]
[337710921,1725983414741,-500.0,0.00016999,2]
[337710922,1725983414768,-501.7908968,0.00016999,2]
[337710923,1725983414791,-500.0,0.00016999,2]
[337710924,1725983414816,-500.0,0.00016999,2]
[337710925,1725983414841,-1371.62,0.00016999,2]
[337710926,1725983414864,-500.0,0.00016999,2]
[337710927,1725983414888,-504.63005103,0.00016999,2]
[337710928,1725983414912,-500.0,0.00016999,2]
[337710929,1725983414936,-500.0,0.00016999,2]
[337710930,1725983414960,-692.15,0.00016999,2]
[337710931,1725983414988,-501.54,0.00016999,2]
[337710932,1725983415010,-500.0,0.00016999,2]
[337710933,1725983415034,-501.48539402,0.00016999,2]
[337710934,1725983415058,-611.66,0.00016999,2]
[337710935,1725983415083,-1525.54,0.00016999,2]
[337710936,1725983415107,-1349.18,0.00016999,2]
[337710937,1725983415130,-500.0,0.00016999,2]
[337710938,1725983415154,-6308.56,0.00016999,2]
[337710939,1725983415177,-673.65,0.00016999,2]
[337710940,1725983415200,-1462.67,0.00016999,2]
[337710941,1725983415224,-910.74,0.00016999,2]
[337710942,1725983415248,-500.0,0.00016999,2]
[337710943,1725983415271,-500.0,0.00016999,2]
[337710944,1725983415294,-500.0,0.00016999,2]
[337710945,1725983415320,-1113.07,0.00016999,2]
[337710946,1725983415343,-500.0,0.00016999,2]
[337710947,1725983415368,-1192.29,0.00016999,2]
[337710948,1725983415390,-1378.05,0.00016999,2]
[337710949,1725983415413,-500.0,0.00016999,2]
[337710950,1725983415438,-1523.63,0.00016999,2]
[337710951,1725983415461,-500.0,0.00016999,2]
[337710952,1725983415489,-500.0,0.00016999,2]
[337710953,1725983415515,-60652.85,0.00016999,2]
[337710954,1725983415540,-500.0,0.00016999,2]
[337710955,1725983415564,-500.0,0.00016999,2]
[337710956,1725983415588,-500.0,0.00016999,2]
[337710957,1725983415614,-35203.19,0.00016999,2]
[337710958,1725983415637,-573.12,0.00016999,2]
[337710959,1725983415662,-693.49,0.00016999,2]
[337710960,1725983415685,-500.0,0.00016999,2]
[337710961,1725983415709,-500.0,0.00016999,2]
[337710962,1725983415737,-500.0,0.00016999,2]
[337710963,1725983415762,-500.0,0.00016999,2]
[337710964,1725983415786,-500.0,0.00016999,2]
[337710965,1725983415811,-5597.81,0.00016999,2]
[337710966,1725983415835,-500.0,0.00016999,2]
[337710967,1725983415858,-500.0,0.00016999,2]
[337710968,1725983415882,-545.75,0.00016999,2]
[337710969,1725983415906,-500.0,0.00016999,2]
[337710970,1725983415930,-500.0,0.00016999,2]
[337710971,1725983415952,-500.0,0.00016999,2]
[337710972,1725983415979,-671.68,0.00016999,2]
[337710973,1725983416002,-500.0,0.00016999,2]
[337710974,1725983416026,-251.9688949,0.00016999,2]
[337710975,1725983416050,-500.0,0.00016999,2]
[337710976,1725983416074,-500.0,0.00016999,2]
[337710977,1725983416098,-500.0,0.00016999,2]
[337710978,1725983416121,-500.0,0.00016999,2]
[337710979,1725983416144,-184.85779699,0.00016999,2]
[337710980,1725983416168,-500.0,0.00016999,2]
[337710981,1725983416192,-500.0,0.00016999,2]
[337710982,1725983416217,-500.0,0.00016999,2]
[337710983,1725983416243,-500.0,0.00016999,2]
[337710984,1725983416266,-500.0,0.00016999,2]
[337710985,1725983416289,-572.9822839,0.00016999,2]
[337710986,1725983416312,-500.0,0.00016999,2]
[337710987,1725983416335,-500.0,0.00016999,2]
[337710988,1725983416358,-500.0,0.00016999,2]
[337710989,1725983416381,-500.0,0.00016999,2]
[337710990,1725983416406,-500.0,0.00016999,2]
[337710991,1725983416431,-250.0,0.00016999,2]
[337710992,1725983416455,-500.0,0.00016999,2]
[337710993,1725983416479,-500.0,0.00016999,2]
[337710994,1725983416501,-43409.45991246,0.00017,2]
[337711005,1725983432493,-1000.0,0.00016899,2]
[337711007,1725983432503,-125.34105446,0.000169,2]
[337711008,1725983432613,-27.65894554,0.000169,2]
[337711009,1725983432624,-245.65962808,0.00016973,2]
[337711014,1725983438522,-254.34037192,0.00016973,2]
[337711015,1725983438531,-500.0,0.00016973,2]
[337711016,1725983438541,-500.0,0.00016973,2]
[337711017,1725983438551,-500.0,0.00016973,2]
[337711018,1725983438561,-2912.74,0.00016996,2]
[337711019,1725983438570,-685.97,0.00016996,2]
[337711020,1725983438580,-500.0,0.00016996,2]
[337711021,1725983438590,-578.92,0.00016996,2]
[337711022,1725983438600,-500.0,0.00016997,2]
[337711023,1725983438609,-500.0,0.00016997,2]
[337711024,1725983438620,-1238.75,0.00016997,2]
[337711025,1725983438629,-500.0,0.00016997,2]
[337711026,1725983438639,-500.0,0.00016997,2]
[337711027,1725983438649,-500.0,0.00016997,2]
[337711028,1725983438658,-2865.48,0.00016998,2]
[337711029,1725983438668,-500.0,0.00016998,2]
[337711030,1725983438678,-500.0,0.00016998,2]
[337711031,1725983438688,-500.0,0.00016998,2]
[337711032,1725983438697,-500.0,0.00016998,2]
[337711033,1725983438707,-500.0,0.00016998,2]
[337711034,1725983438717,-500.0,0.00016998,2]
[337711035,1725983438726,-500.0,0.00016999,2]
[337711036,1725983438736,-500.0,0.00016999,2]
[337711037,1725983438748,-500.0,0.00016999,2]
[337711038,1725983438758,-500.0,0.00016999,2]
[337711039,1725983438768,-1768.02,0.00016999,2]
[337711040,1725983438781,-882.69,0.00016999,2]
[337711042,1725983438791,-500.0,0.00016999,2]
[337711043,1725983438802,-500.0,0.00016999,2]
[337711045,1725983438813,-353.36793041,0.00016999,2]
[337711136,1725983439923,-288.69206959,0.00016999,2]
[337711137,1725983439933,-500.0,0.00016999,2]